bitfinex/quotes_BTCUSD_20250619
["timestamp","ask_amount","ask_price","bid_price","bid_amount"]
[1750306272401,0.003,104980.0,104970.0,0.20036176]
[1750306272632,0.003,104980.0,104970.0,0.56410443]
[1750306272855,0.003,104980.0,104970.0,0.40994443]
[1750306273084,0.003,104980.0,104970.0,0.56410443]
[1750306273311,0.002,104980.0,104970.0,0.56410443]
[1750306273558,0.002,104980.0,104970.0,0.40994443]
[1750306273792,0.003,104980.0,104970.0,0.56410443]
[1750306274011,0.001,104980.0,104970.0,0.56410443]
[1750306274223,0.59259546,104990.0,104980.0,0.00952562]
[1750306274439,0.65529546,104990.0,104980.0,0.10576738]
[1750306274850,0.66481999,104990.0,104980.0,0.09624176]
[1750306275057,0.65529546,104990.0,104980.0,0.09624176]
[1750306275494,0.60211999,104990.0,104980.0,0.10576738]
[1750306275710,0.60211999,104990.0,104980.0,0.25992738]
[1750306275915,0.60211999,104990.0,104980.0,0.26392738]
[1750306276164,0.63241999,104990.0,104980.0,0.25440176]
[1750306276403,0.66481999,104990.0,104980.0,0.25440176]
[1750306276621,0.64577111,104990.0,104980.0,0.45443967]
[1750306276843,0.65529546,104990.0,104980.0,0.45743967]
[1750306277061,0.62289546,104990.0,104980.0,0.45743976]
[1750306277501,0.6324199,104990.0,104980.0,0.45743976]
[1750306278021,0.6324199,104990.0,104980.0,0.45743985]
[1750306278237,0.6324199,104990.0,104980.0,0.46696538]
[1750306278454,0.6656199,104990.0,104980.0,0.26688738]
[1750306278871,0.6021199,104990.0,104980.0,0.26688738]
[1750306279092,0.6021199,104990.0,104980.0,0.12229291]
[1750306279324,0.6021199,104990.0,104980.0,0.26688738]
[1750306279993,0.6021199,104990.0,104980.0,0.11276738]
[1750306280312,0.64847174,104990.0,104980.0,0.29684176]
[1750306280521,0.67709374,104990.0,104980.0,0.29684176]
[1750306281017,0.67709374,104990.0,104980.0,0.29384176]
[1750306281256,0.67709374,104990.0,104980.0,0.28984176]
[1750306281497,0.67709374,104990.0,104980.0,0.29184176]
[1750306281740,0.67709374,104990.0,104980.0,0.29384176]
[1750306281952,0.6675693,104990.0,104980.0,0.29384176]
[1750306282211,0.6675693,104990.0,104980.0,0.10024176]
[1750306282423,0.6675693,104990.0,104980.0,0.29384176]
[1750306282625,0.6675693,104990.0,104980.0,0.10024176]
[1750306282924,0.6675693,104990.0,104980.0,0.29384176]
[1750306283409,0.6675693,104990.0,104980.0,0.004]
[1750306283622,0.6675693,104990.0,104980.0,0.1976]
[1750306284773,0.69926502,104990.0,104980.0,0.1976]
[1750306284991,0.72754301,104990.0,104980.0,0.1976]
[1750306285213,0.76274549,104990.0,104980.0,0.1976]
[1750306285482,0.73422037,104990.0,104980.0,0.18941422]
[1750306285705,0.73422037,104990.0,104980.0,0.14174844]
[1750306286575,0.73421683,104990.0,104980.0,0.14174844]
[1750306286815,0.73621683,104990.0,104980.0,0.14174844]
[1750306287048,0.22865688,104960.0,104950.0,0.2597]
[1750306287306,0.21912945,104960.0,104950.0,0.54954176]
[1750306287751,0.2286567,104960.0,104950.0,0.35594176]
[1750306287981,0.2286567,104960.0,104950.0,0.54954176]
[1750306289292,0.23818413,104960.0,104950.0,0.54954176]
[1750306289529,0.23818404,104960.0,104950.0,0.54954176]
[1750306289731,0.23818404,104960.0,104950.0,0.55054176]
[1750306290611,0.2286567,104960.0,104950.0,0.55054176]
[1750306290845,0.2191733,104970.0,104950.0,0.78103667]
[1750306291028,0.20007549,104960.0,104950.0,0.70385105]
[1750306291278,0.25727759,104970.0,104950.0,0.80962052]
[1750306291494,0.60680412,104970.0,104960.0,0.10576901]
[1750306291711,0.60680412,104970.0,104960.0,0.09624176]
[1750306291926,0.60680412,104970.0,104960.0,0.29631779]
[1750306292136,0.59827759,104970.0,104960.0,0.29631779]
[1750306292347,0.59727759,104970.0,104960.0,0.29631779]
[1750306292564,0.59727759,104970.0,104960.0,0.30584495]
[1750306292775,0.59827759,104970.0,104960.0,0.31537193]
[1750306292983,0.59827759,104970.0,104960.0,0.32489882]
[1750306293177,0.60780412,104970.0,104960.0,0.31537193]
[1750306293879,0.60780412,104970.0,104960.0,0.50897193]
[1750306294422,0.60780412,104970.0,104960.0,0.51849882]
[1750306294627,0.60780412,104970.0,104960.0,0.52802562]
[1750306295238,0.59827832,104970.0,104960.0,0.51849882]
[1750306296978,0.59827832,104970.0,104960.0,0.53997193]
[1750306297610,0.59827832,104970.0,104960.0,0.50897193]
[1750306299868,0.40773202,104970.0,104960.0,0.50897193]
[1750306300409,0.59827832,104970.0,104960.0,0.50897193]
[1750306300870,0.59827832,104970.0,104960.0,0.51849882]
[1750306301917,0.59827832,104970.0,104960.0,0.54879882]
[1750306302971,0.59827832,104970.0,104960.0,0.51849882]
[1750306303588,0.39773202,104970.0,104960.0,0.52802562]
[1750306304471,0.39773202,104970.0,104960.0,0.55992562]
[1750306305276,0.39773202,104970.0,104960.0,0.52802562]
[1750306306098,0.39773202,104970.0,104960.0,0.51849882]
[1750306306310,0.58826264,104970.0,104960.0,0.50897193]
[1750306307147,0.58826264,104970.0,104960.0,0.51849882]
[1750306312094,0.39773202,104970.0,104960.0,0.52802562]
[1750306322022,0.38820549,104970.0,104960.0,0.52802562]
[1750306322501,0.019627,104970.0,104960.0,0.60526647]
[1750306322760,0.001,104970.0,104960.0,0.60526647]
[1750306322995,0.001,104970.0,104960.0,0.89676647]
[1750306323876,0.03351871,104990.0,104980.0,0.21908824]
[1750306324109,0.028617,105000.0,104990.0,0.28176738]
[1750306324330,0.028617,105000.0,104990.0,0.37800914]
[1750306324564,0.41665405,105010.0,105000.0,0.21904651]
[1750306324813,0.43510139,105010.0,105000.0,0.50888827]
[1750306325050,0.45419522,105010.0,105000.0,0.50888827]
[1750306325269,0.45479213,105010.0,105000.0,0.50888827]
[1750306325495,0.46652213,105010.0,105000.0,0.50888827]
[1750306325722,0.38986808,105010.0,105000.0,0.50888827]
[1750306326198,0.02125208,105010.0,105000.0,0.79818827]
[1750306326662,0.368663,105020.0,105010.0,0.21902565]
[1750306326884,0.028663,105020.0,105010.0,0.31526741]
[1750306327114,0.34957117,105020.0,105010.0,0.31526741]
[1750306327333,0.34005,105020.0,105010.0,0.31526741]
[1750306328037,5e-05,105020.0,105010.0,0.31526741]
[1750306328260,5e-05,105020.0,105010.0,0.34676741]
[1750306328484,0.36182046,105020.0,105010.0,0.37896741]
[1750306328726,0.34005,105020.0,105010.0,0.37896741]
[1750306329202,0.34005,105020.0,105010.0,0.54132741]
[1750306330344,0.34005,105020.0,105010.0,0.54232741]
[1750306331656,0.36193646,105020.0,105010.0,0.54232741]
[1750306333616,0.36193646,105020.0,105010.0,0.51082741]
[1750306334521,0.37145763,105020.0,105010.0,0.51082741]
[1750306334731,0.36193646,105020.0,105010.0,0.51082741]
[1750306334942,0.37145763,105020.0,105010.0,0.51082741]
[1750306339530,0.40002225,105020.0,105010.0,0.51082741]
[1750306340716,0.59046216,105020.0,105010.0,0.32696176]
[1750306340916,0.64354162,105020.0,105010.0,0.72994552]
[1750306341553,0.64354162,105020.0,105010.0,0.73946805]
[1750306342258,0.64354162,105020.0,105010.0,0.74899049]
[1750306342504,0.38097927,105020.0,105010.0,0.75851248]
[1750306342719,0.39050108,105020.0,105010.0,0.75851248]
[1750306343562,0.39050099,105020.0,105010.0,0.75851248]
[1750306344277,0.38097927,105020.0,105010.0,0.75851248]
[1750306344512,0.3905009,105020.0,105010.0,0.75851248]
[1750306344809,0.40002262,105020.0,105010.0,0.75851248]
[1750306345868,0.40954443,105020.0,105010.0,0.75851248]
[1750306346717,0.40002262,105020.0,105010.0,0.75851248]
[1750306349842,0.3905009,105020.0,105010.0,0.75851248]
[1750306350932,0.3905009,105020.0,105010.0,0.52979248]
[1750306352406,0.39941209,105020.0,105010.0,0.52979248]
[1750306352626,0.42221847,105020.0,105010.0,0.52979248]
[1750306353847,0.42221846,105020.0,105010.0,0.52979248]
[1750306354070,0.40317529,105020.0,105010.0,0.52979248]
[1750306354774,0.40317529,105020.0,105010.0,0.33631248]
[1750306355014,0.41269674,105020.0,105010.0,0.52975248]
[1750306355250,0.40317529,105020.0,105010.0,0.52975248]
[1750306355741,0.39365402,105020.0,105010.0,0.52975248]
[1750306355982,0.39365402,105020.0,105010.0,0.59375248]
[1750306356223,0.03084764,105020.0,105010.0,0.59375248]
[1750306356444,0.02193646,105020.0,105010.0,0.60829333]
[1750306356674,5e-05,105020.0,105010.0,0.60829333]
[1750306358903,5e-05,105020.0,105010.0,0.89979333]
[1750306365375,0.027325,105030.0,105010.0,0.89979333]
[1750306365592,5e-05,105040.0,105030.0,0.29372479]
[1750306365815,5e-05,105060.0,105050.0,0.29368311]
[1750306366039,0.01897508,105070.0,105060.0,0.26356225]
[1750306366260,0.01892508,105070.0,105060.0,0.38990401]
[1750306366479,0.0627,105090.0,105080.0,0.21887974]
[1750306366689,0.091343,105100.0,105090.0,0.21885892]
[1750306366906,0.091343,105100.0,105090.0,0.31510068]
[1750306367234,0.06275,105100.0,105090.0,0.31510068]
[1750306367471,0.07226402,105100.0,105090.0,0.31510068]
[1750306367703,0.06275,105100.0,105090.0,0.31510068]
[1750306368392,0.06475,105100.0,105090.0,0.31510068]
[1750306369155,0.02157095,105100.0,105090.0,0.31510068]
[1750306370058,0.29699769,105110.0,105100.0,0.21883809]
[1750306370289,0.30651052,105110.0,105100.0,0.73715985]
[1750306370519,0.316024,105110.0,105100.0,0.73715985]
[1750306370960,0.30651052,105110.0,105100.0,0.73715985]
[1750306371193,0.28748412,105110.0,105100.0,0.73715985]
[1750306371419,0.30651104,105110.0,105100.0,0.73715985]
[1750306371862,0.30851104,105110.0,105100.0,0.73715985]
[1750306372333,0.30851104,105110.0,105100.0,0.79975985]
[1750306372548,0.02102692,105110.0,105100.0,0.79975985]
[1750306373661,0.02202692,105110.0,105100.0,0.79975985]
[1750306374316,0.003,105110.0,105100.0,0.8143007]
[1750306374799,0.02226816,105110.0,105100.0,1.1058007]
[1750306375233,0.003,105110.0,105100.0,0.9123607]
[1750306375465,0.09714016,105110.0,105100.0,0.82570574]
[1750306375682,0.11616775,105110.0,105100.0,1.02861994]
[1750306375909,0.29693149,105110.0,105100.0,1.02861994]
[1750306376369,0.10665464,105110.0,105100.0,1.03817405]
[1750306376600,0.0971408,105110.0,105100.0,1.03817405]
[1750306377048,0.0971408,105110.0,105100.0,1.03813405]
[1750306377487,0.29624729,105110.0,105100.0,0.38774176]
[1750306377711,0.29624729,105110.0,105100.0,0.78095127]
[1750306378160,0.09107103,105110.0,105100.0,0.79046556]
[1750306378411,0.30993619,105110.0,105100.0,0.79046556]
[1750306378636,0.34023619,105110.0,105100.0,0.79046556]
[1750306380381,0.34023619,105110.0,105100.0,0.79042556]
[1750306380599,0.32120833,105110.0,105100.0,0.79042556]
[1750306380816,0.34023574,105110.0,105100.0,0.50844012]
[1750306381036,0.14995816,105110.0,105100.0,0.51795423]
[1750306381263,0.11855816,105110.0,105100.0,0.51795423]
[1750306381476,0.08825825,105110.0,105100.0,0.51795423]
[1750306381908,0.08825855,105110.0,105100.0,0.51795423]
[1750306382882,0.08825846,105110.0,105100.0,0.51795423]
[1750306383091,0.09777212,105110.0,105100.0,0.51795423]
[1750306383972,0.08825846,105110.0,105100.0,0.51795423]
[1750306384211,0.07874489,105110.0,105100.0,0.51795423]
[1750306384989,0.07875011,105110.0,105100.0,0.51795423]
[1750306386189,0.07875001,105110.0,105100.0,0.51795423]
[1750306386667,0.07875001,105110.0,105100.0,0.54995423]
[1750306387110,0.07875001,105110.0,105100.0,0.58315423]
[1750306387320,0.07874992,105110.0,105100.0,0.58315423]
[1750306387542,0.05972361,105110.0,105100.0,0.58315423]
[1750306387715,0.031146,105110.0,105100.0,0.58315423]
[1750306389005,0.04065911,105110.0,105100.0,0.58315423]
[1750306389816,0.031146,105110.0,105100.0,0.58315423]
[1750306390029,0.04065911,105110.0,105100.0,0.58315423]
[1750306390475,0.0406704,105110.0,105100.0,0.58315423]
[1750306390695,0.03115729,105110.0,105100.0,0.58307423]
[1750306390903,0.0406704,105110.0,105100.0,0.58307423]
[1750306392511,0.05018379,105110.0,105100.0,0.58307423]
[1750306392969,0.05969736,105110.0,105100.0,0.51787423]
[1750306393394,0.06641071,105110.0,105100.0,0.511685]
[1750306393601,0.07956085,105110.0,105100.0,0.511685]
[1750306393818,0.08907442,105110.0,105100.0,0.511685]
[1750306395237,0.07956085,105110.0,105100.0,0.511685]
[1750306395667,0.10783227,105110.0,105100.0,0.511685]
[1750306396365,0.10784177,105110.0,105100.0,0.511685]
[1750306396608,0.11735534,105110.0,105100.0,0.511685]
[1750306397275,0.1173556,105110.0,105100.0,0.511685]
[1750306397777,0.15545503,105110.0,105100.0,0.511685]
[1750306397992,0.17327604,105110.0,105100.0,0.511685]
[1750306398441,0.17327604,105110.0,105100.0,0.542685]
[1750306399705,0.19230345,105110.0,105100.0,0.542685]
[1750306400966,0.19230345,105110.0,105100.0,0.771205]
[1750306401187,0.19230418,105110.0,105100.0,0.740205]
[1750306401757,0.37306764,105110.0,105100.0,0.53741107]
[1750306401974,0.37309556,105110.0,105100.0,0.73069107]
[1750306402193,0.37309556,105110.0,105100.0,0.74020536]
[1750306402618,0.37309645,105110.0,105100.0,0.74020536]
[1750306403485,0.34482503,105110.0,105100.0,0.74020536]
[1750306403691,0.40197418,105110.0,105100.0,0.74020536]
[1750306404562,0.33531146,105110.0,105100.0,0.74020536]
[1750306405023,0.43821821,105110.0,105100.0,0.51185253]
[1750306405501,0.42870437,105110.0,105100.0,0.32808727]
[1750306405715,0.42870437,105110.0,105100.0,0.52136727]
[1750306405916,0.39660437,105110.0,105100.0,0.52136727]
[1750306406127,0.36390437,105110.0,105100.0,0.52136727]
[1750306406989,0.42660437,105110.0,105100.0,0.52136727]
[1750306407196,0.20456862,105110.0,105100.0,0.52136727]
[1750306407621,0.14186862,105110.0,105100.0,0.52136727]
[1750306407834,0.1609257,105110.0,105100.0,0.52136727]
[1750306408905,0.2236257,105110.0,105100.0,0.52136727]
[1750306409112,0.1609257,105110.0,105100.0,0.52136727]
[1750306410568,0.14192535,105110.0,105100.0,0.73069107]
[1750306410778,0.07149472,105110.0,105100.0,0.74020527]
[1750306410989,0.08100774,105110.0,105100.0,0.81071938]
[1750306411407,0.09052123,105110.0,105100.0,0.81071938]
[1750306412337,0.07270656,105110.0,105100.0,0.81071938]
[1750306412586,0.09052238,105110.0,105100.0,0.81071938]
[1750306413898,0.07149497,105110.0,105100.0,0.81071938]
[1750306414102,0.08100854,105110.0,105100.0,0.81071938]
[1750306414990,0.0905222,105110.0,105100.0,0.81071938]
[1750306415203,0.06602577,105110.0,105100.0,0.77991938]
[1750306415860,0.06602686,105110.0,105100.0,0.77991938]
[1750306416844,0.0565132,105110.0,105100.0,0.77991938]
[1750306417093,0.06602677,105110.0,105100.0,0.81121938]
[1750306417927,0.06602677,105110.0,105100.0,0.61793938]
[1750306418148,0.07554052,105110.0,105100.0,0.77991938]
[1750306419439,0.07554116,105110.0,105100.0,0.77991938]
[1750306419640,0.07554116,105110.0,105100.0,0.74971938]
[1750306420339,0.06663274,105110.0,105100.0,0.74971938]
[1750306422636,0.0571189,105110.0,105100.0,0.74971938]
[1750306423200,0.04760515,105110.0,105100.0,0.74971938]
[1750306423843,0.04760515,105110.0,105100.0,0.78281938]
[1750306424285,0.04760515,105110.0,105100.0,0.81491938]
[1750306425458,0.0571189,105110.0,105100.0,0.81491938]
[1750306430456,0.06663274,105110.0,105100.0,0.81491938]
[1750306437051,0.06663274,105110.0,105100.0,0.58953938]
[1750306437281,0.06663274,105110.0,105100.0,0.78273938]
[1750306440593,0.06663274,105110.0,105100.0,0.81303938]
[1750306440828,0.0571189,105110.0,105100.0,0.81303938]
[1750306441816,0.04760515,105110.0,105100.0,0.81303938]
[1750306445061,0.03809149,105110.0,105100.0,0.81303938]
[1750306446099,0.03809112,105110.0,105100.0,0.81303938]
[1750306447253,0.02857764,105110.0,105100.0,0.81303938]
[1750306447699,0.01906462,105110.0,105100.0,0.81303938]
[1750306448150,0.40085936,105120.0,105110.0,0.21881728]
[1750306448375,0.40977535,105120.0,105110.0,0.35441904]
[1750306448566,0.40977535,105120.0,105110.0,0.38731904]
[1750306448826,0.6000341,105120.0,105110.0,0.37780584]
[1750306449044,0.6000341,105120.0,105110.0,0.34490584]
[1750306449486,0.6020341,105120.0,105110.0,0.34490584]
[1750306449708,0.6020341,105120.0,105110.0,0.35441913]
[1750306449915,0.40226242,105120.0,105110.0,0.36393233]
[1750306450122,0.41377535,105120.0,105110.0,0.36393233]
[1750306450781,0.41377576,105120.0,105110.0,0.36393233]
[1750306451660,0.03910837,105120.0,105110.0,0.51782723]
[1750306452543,0.03510837,105120.0,105110.0,0.51782723]
[1750306453018,0.34,105130.0,105120.0,0.28429646]
[1750306453222,0.34,105130.0,105120.0,0.53437822]
[1750306453451,0.37513583,105130.0,105120.0,0.53437822]
[1750306454116,0.37513583,105130.0,105120.0,0.53433822]
[1750306455481,0.37613583,105130.0,105120.0,0.53433822]
[1750306455947,0.37513583,105130.0,105120.0,0.53433822]
[1750306456230,0.03837843,105150.0,105140.0,0.21875484]
[1750306456440,0.40630169,105150.0,105140.0,0.5081566]
[1750306457310,0.4063016,105150.0,105140.0,0.5081566]
[1750306457523,0.40630151,105150.0,105140.0,0.5081566]
[1750306457729,0.41581137,105150.0,105140.0,0.5081566]
[1750306457940,0.40690774,105150.0,105140.0,0.5081566]
[1750306458388,0.40890774,105150.0,105140.0,0.5081566]
[1750306458818,0.40890774,105150.0,105140.0,0.5396566]
[1750306459077,0.41841778,105150.0,105140.0,0.5081566]
[1750306459527,0.41941778,105150.0,105140.0,0.5081566]
[1750306460288,0.40990774,105150.0,105140.0,0.5081566]
[1750306460490,0.45444217,105150.0,105140.0,0.5081566]
[1750306460689,0.45444217,105150.0,105140.0,0.7366366]
[1750306461412,0.45444281,105150.0,105140.0,0.7366366]
[1750306463753,0.44493277,105150.0,105140.0,0.7366366]
[1750306464861,0.45444281,105150.0,105140.0,0.7366366]
[1750306466599,0.44493277,105150.0,105140.0,0.7366366]
[1750306467856,0.44493277,105150.0,105140.0,0.7696366]
[1750306469538,0.45444281,105150.0,105140.0,0.7696366]
[1750306469960,0.45444281,105150.0,105140.0,0.7366366]
[1750306475171,0.45444281,105150.0,105140.0,0.5081566]
[1750306478062,0.44493277,105150.0,105140.0,0.5081566]
[1750306478930,0.45444281,105150.0,105140.0,0.5081566]
[1750306482067,0.46335198,105150.0,105140.0,0.5081566]
[1750306483424,0.48617348,105150.0,105140.0,0.5081566]
[1750306484142,0.48617393,105150.0,105140.0,0.5081566]
[1750306485009,0.48617848,105150.0,105140.0,0.5081566]
[1750306486544,0.48617893,105150.0,105140.0,0.5081566]
[1750306487327,0.66687353,105150.0,105140.0,0.49864611]
[1750306487599,0.66687353,105150.0,105140.0,0.50815678]
[1750306487845,0.66687353,105150.0,105140.0,0.51766736]
[1750306488104,0.66688187,105150.0,105140.0,0.51766736]
[1750306488357,0.6847273,105150.0,105140.0,0.50815678]
[1750306488765,0.66688187,105150.0,105140.0,0.50815678]
[1750306489088,0.65737192,105150.0,105140.0,0.50815678]
[1750306489316,0.65737192,105150.0,105140.0,0.09624176]
[1750306489526,0.75390079,105150.0,105140.0,0.28928176]
[1750306490432,0.5397335,105140.0,105130.0,0.22848]
[1750306490654,0.57147706,105140.0,105130.0,0.51776176]
[1750306491367,0.57147706,105140.0,105130.0,0.52727379]
[1750306491574,0.56196612,105140.0,105130.0,0.52727379]
[1750306491786,0.56196612,105140.0,105130.0,0.52827379]
[1750306492013,0.56196612,105140.0,105130.0,0.52927379]
[1750306493104,0.56196612,105140.0,105130.0,0.51976176]
[1750306495965,0.56196612,105140.0,105130.0,0.51876176]
[1750306496451,0.56196612,105140.0,105130.0,0.51976176]
[1750306496882,0.56196612,105140.0,105130.0,0.51876176]
[1750306498193,0.56196612,105140.0,105130.0,0.51776176]
[1750306500008,0.59246612,105140.0,105130.0,0.51776176]
[1750306500673,0.56196612,105140.0,105130.0,0.36404176]
[1750306500888,0.62426612,105140.0,105130.0,0.32472176]
[1750306501105,0.64208461,105140.0,105130.0,0.22848]
[1750306501322,0.67727727,105140.0,105130.0,0.42152]
[1750306501957,0.67726302,105140.0,105130.0,0.42152]
[1750306502170,0.65075218,105140.0,105130.0,0.42152]
[1750306502382,0.58377056,105140.0,105130.0,0.51776176]
[1750306502588,0.58377114,105140.0,105130.0,0.51776176]
[1750306503225,0.43203653,105140.0,105130.0,0.51776176]
[1750306503424,0.43203439,105140.0,105130.0,0.51776176]
[1750306504694,0.43202928,105140.0,105130.0,0.51776176]
[1750306505307,0.41421614,105140.0,105130.0,0.51776176]
[1750306506137,0.42372708,105140.0,105130.0,0.74861435]
[1750306506345,0.40090558,105140.0,105130.0,0.74861435]
[1750306506560,0.40090558,105140.0,105130.0,0.54886176]
[1750306506982,0.40090558,105140.0,105130.0,0.58997379]
[1750306507766,0.40090558,105140.0,105130.0,0.58046176]
[1750306508392,0.40090558,105140.0,105130.0,0.58997379]
[1750306509256,0.40090558,105140.0,105130.0,0.55837379]
[1750306509697,0.36241763,105140.0,105130.0,0.55837379]
[1750306509921,0.55264019,105140.0,105130.0,0.55837379]
[1750306511679,0.58122019,105140.0,105130.0,0.55837379]
[1750306512579,0.60402307,105140.0,105130.0,0.55837379]
[1750306513389,0.60402404,105140.0,105130.0,0.55837379]
[1750306513632,0.59511638,105140.0,105130.0,0.55837379]
[1750306513878,0.60402436,105140.0,105130.0,0.55837379]
[1750306514710,0.60402436,105140.0,105130.0,0.54886176]
[1750306516238,0.61353503,105140.0,105130.0,0.61568241]
[1750306516484,0.61353503,105140.0,105130.0,0.80744907]
[1750306516485,0.43282287,105140.0,105130.0,0.80744907]
[1750306516704,0.43282278,105140.0,105130.0,0.80744907]
[1750306516918,0.44233372,105140.0,105130.0,0.80744907]
[1750306517560,0.44295096,105140.0,105130.0,0.80744907]
[1750306517848,0.45186121,105140.0,105130.0,0.80744907]
[1750306518071,0.6325731,105140.0,105130.0,0.79793768]
[1750306518289,0.62106225,105140.0,105130.0,0.79793787]
[1750306518820,0.61155131,105140.0,105130.0,0.7884262]
[1750306519031,0.61155981,105140.0,105130.0,0.7884262]
[1750306519250,0.60204878,105140.0,105130.0,0.79793823]
[1750306519899,0.60004878,105140.0,105130.0,0.79793823]
[1750306520334,0.60837589,105140.0,105130.0,0.57916176]
[1750306520556,0.60837589,105140.0,105130.0,0.42544176]
[1750306520780,0.60837589,105140.0,105130.0,0.57916176]
[1750306522032,0.60837735,105140.0,105130.0,0.57916176]
[1750306522724,0.60837735,105140.0,105130.0,0.62519444]
[1750306522951,0.60837735,105140.0,105130.0,0.77891444]
[1750306523166,0.60837837,105140.0,105130.0,0.78842638]
[1750306523644,0.60837837,105140.0,105130.0,0.63470638]
[1750306523866,0.60837837,105140.0,105130.0,0.78842638]
[1750306524313,0.60837837,105140.0,105130.0,0.79793823]
[1750306524817,0.60837859,105140.0,105130.0,0.79793823]
[1750306525179,0.60837859,105140.0,105130.0,0.80744999]
[1750306528739,0.60837859,105140.0,105130.0,0.78842638]
[1750306528948,0.60837859,105140.0,105130.0,0.57916176]
[1750306529594,0.60837956,105140.0,105130.0,0.57916176]
[1750306530483,0.59054114,105140.0,105130.0,0.57916176]
[1750306530694,0.60838416,105140.0,105130.0,0.77891435]
[1750306531342,0.60838416,105140.0,105130.0,0.76940241]
[1750306531875,0.60838416,105140.0,105130.0,0.78842638]
[1750306532080,0.60838416,105140.0,105130.0,0.80744981]
[1750306532285,0.61789519,105140.0,105130.0,0.80744981]
[1750306533307,0.6000532,105140.0,105130.0,0.80744981]
[1750306533513,0.62740905,105140.0,105130.0,0.80744981]
[1750306533931,0.62740905,105140.0,105130.0,0.65372981]
[1750306534340,0.62740905,105140.0,105130.0,0.80744981]
[1750306535150,0.62740905,105140.0,105130.0,0.81696139]
[1750306535270,0.46553659,105140.0,105130.0,0.81696084]
[1750306535485,0.46553653,105140.0,105130.0,0.81696084]
[1750306535872,0.27531343,105140.0,105130.0,0.81696084]
[1750306536074,0.2574684,105140.0,105130.0,0.81696029]
[1750306536277,0.26697939,105140.0,105130.0,0.81696029]
[1750306536703,0.27649042,105140.0,105130.0,0.81696029]
[1750306536982,0.2384472,105140.0,105130.0,0.81696029]
[1750306537190,0.20607111,105140.0,105130.0,0.81696029]
[1750306537391,0.19714852,105140.0,105130.0,0.81696029]
[1750306537599,0.20606945,105140.0,105130.0,0.81696029]
[1750306537951,0.21558012,105140.0,105130.0,0.81696029]
[1750306539841,0.20606945,105140.0,105130.0,0.81696029]
[1750306540241,0.19655887,105140.0,105130.0,0.81696029]
[1750306540453,0.19655671,105140.0,105130.0,0.81696029]
[1750306540691,0.19714852,105140.0,105130.0,0.81696029]
[1750306540915,0.19714843,105140.0,105130.0,0.81696029]
[1750306541342,0.19714852,105140.0,105130.0,0.81696029]
[1750306545077,0.20665919,105140.0,105130.0,0.81696029]
[1750306546580,0.21617013,105140.0,105130.0,0.81696029]
[1750306546826,0.20665919,105140.0,105130.0,0.81696029]
[1750306547046,0.21617004,105140.0,105130.0,0.81696029]
[1750306548268,0.20665919,105140.0,105130.0,0.81696029]
[1750306549144,0.21616995,105140.0,105130.0,0.81696029]
[1750306549651,0.21616995,105140.0,105130.0,0.58848029]
[1750306550441,0.22568089,105140.0,105130.0,0.58848029]
[1750306551564,0.21616995,105140.0,105130.0,0.58848029]
[1750306552202,0.2256808,105140.0,105130.0,0.58848029]
[1750306552874,0.22568134,105140.0,105130.0,0.58848029]
[1750306553100,0.2161704,105140.0,105130.0,0.58848029]
[1750306553837,0.22568134,105140.0,105130.0,0.58848029]
[1750306554614,0.2161704,105140.0,105130.0,0.58848029]
[1750306556458,0.20665955,105140.0,105130.0,0.58848029]
[1750306558907,0.21617049,105140.0,105130.0,0.58848029]
[1750306559158,0.20665955,105140.0,105130.0,0.58848029]
[1750306559614,0.21557675,105140.0,105130.0,0.58848029]
[1750306560709,0.20606599,105140.0,105130.0,0.58848029]
[1750306560930,0.20606563,105140.0,105130.0,0.58848029]
[1750306561144,0.19714834,105140.0,105130.0,0.58848029]
[1750306561356,0.18763794,105140.0,105130.0,0.81696029]
[1750306562396,0.19714852,105140.0,105130.0,0.81696029]
[1750306562623,0.18763794,105140.0,105130.0,0.81696029]
[1750306563333,0.19714852,105140.0,105130.0,0.81696029]
[1750306563766,0.18763794,105140.0,105130.0,0.81696029]
[1750306564199,0.19714852,105140.0,105130.0,0.81696029]
[1750306565358,0.19714843,105140.0,105130.0,0.81696029]
[1750306565803,0.20665901,105140.0,105130.0,0.81696029]
[1750306569014,0.19714843,105140.0,105130.0,0.81696029]
[1750306576594,0.2295012,105140.0,105130.0,0.81696029]
[1750306576814,0.22950111,105140.0,105130.0,0.81696029]
[1750306577043,0.21999044,105140.0,105130.0,0.81696029]
[1750306577613,0.22950102,105140.0,105130.0,0.81696029]
[1750306578045,0.24793446,105140.0,105130.0,0.81696029]
[1750306578457,0.2574454,105140.0,105130.0,0.81696029]
[1750306578878,0.25744539,105140.0,105130.0,0.81696029]
[1750306579312,0.24793445,105140.0,105130.0,0.81696029]
[1750306579529,0.25744539,105140.0,105130.0,0.81696029]
[1750306579742,0.24793445,105140.0,105130.0,0.81696029]
[1750306580463,0.43815764,105140.0,105130.0,0.5953862]
[1750306580688,0.47873657,105140.0,105130.0,0.71739444]
[1750306581363,0.49658273,105140.0,105130.0,0.71739444]
[1750306581591,0.20989222,105140.0,105130.0,0.59225444]
[1750306581820,0.61311814,105150.0,105130.0,0.77639408]
[1750306582048,0.03804268,105140.0,105130.0,0.68966426]
[1750306582279,0.03804268,105140.0,105130.0,0.77442899]
[1750306582467,0.01902089,105140.0,105130.0,0.77442899]
[1750306582691,0.05647406,105140.0,105130.0,0.55300908]
[1750306582918,0.03745209,105140.0,105130.0,0.75580047]
[1750306583143,0.03804259,105140.0,105130.0,0.75580047]
[1750306583382,0.03745199,105140.0,105130.0,0.75580047]
[1750306583596,0.54496343,105150.0,105130.0,0.75579974]
[1750306583810,0.02853165,105140.0,105130.0,0.65955798]
[1750306584038,0.03804259,105140.0,105130.0,0.75579974]
[1750306584950,0.02853165,105140.0,105130.0,1.04729974]
[1750306585380,0.03804259,105140.0,105130.0,1.04729974]
[1750306586075,0.56826587,105140.0,105130.0,0.82548602]
[1750306586291,0.40088165,105140.0,105130.0,1.0282375]
[1750306586540,0.38755443,105140.0,105130.0,1.0282375]
[1750306587631,0.38755443,105140.0,105130.0,1.03774889]
[1750306589859,0.38755443,105140.0,105130.0,0.80926889]
[1750306590612,0.34951049,105140.0,105130.0,0.80926889]
[1750306590813,0.36853228,105140.0,105130.0,0.51776889]
[1750306591390,0.3780434,105140.0,105130.0,0.51776889]
[1750306592158,0.3780434,105140.0,105130.0,0.5082575]
[1750306592710,0.56826596,105140.0,105130.0,0.5082575]
[1750306593437,0.59110119,105140.0,105130.0,0.5082575]
[1750306593639,0.65210119,105140.0,105130.0,0.49874602]
[1750306594001,0.59110119,105140.0,105130.0,0.5082576]
[1750306594205,0.5815907,105140.0,105130.0,0.5082576]
[1750306595878,0.5905103,105140.0,105130.0,0.5082576]
[1750306596566,0.5905103,105140.0,105130.0,0.51776908]
[1750306598534,0.5905103,105140.0,105130.0,0.5082576]
[1750306598951,0.59051055,105140.0,105130.0,0.5082576]
[1750306599368,0.58099979,105140.0,105130.0,0.49874602]
[1750306599564,0.57148876,105140.0,105130.0,0.48923435]
[1750306599867,0.57148876,105140.0,105130.0,0.09624176]
[1750306600093,0.56197764,105140.0,105130.0,0.47956241]